[Event "GrandPrix_30.05"]
[Site "Chess.com"]
[Date "2020.05.30"]
[Round "3"]
[White "Gurvich_Vitaly"]
[Black "klimkoj"]
[Result "1-0"]
[WhiteElo "2289"]
[BlackElo "2106"]
[TimeControl "600+2"]
[EndTime "9:16:48 PDT"]
[Termination "Gurvich_Vitaly won by resignation"]

1. e4 {[%clk 0:10:01.9]} 1... c5 {[%clk 0:09:59.8]} 2. Nf3 {[%clk 0:10:01.6]}
2... d6 {[%clk 0:09:59.7]} 3. d4 {[%clk 0:10:01.1]} 3... cxd4 {[%clk 0:10:00.7]}
4. Nxd4 {[%clk 0:10:03]} 4... Nf6 {[%clk 0:10:01.3]} 5. Nc3 {[%clk 0:10:02.5]}
5... a6 {[%clk 0:10:02.2]} 6. Nb3 {[%clk 0:10:00.3]} 6... e6 {[%clk 0:10:01.1]}
7. g4 {[%clk 0:10:00.6]} 7... Be7 {[%clk 0:10:00.5]} 8. Bg2 {[%clk 0:10:00.3]}
8... O-O {[%clk 0:10:00.6]} 9. Be3 {[%clk 0:10:01]} 9... Nc6 {[%clk 0:10:01.3]}
10. g5 {[%clk 0:10:00.6]} 10... Nd7 {[%clk 0:10:01.4]} 11. h4 {[%clk 0:10:01.5]}
11... b5 {[%clk 0:09:59.8]} 12. Qe2 {[%clk 0:10:02.4]} 12... Bb7 {[%clk
0:10:00.1]} 13. O-O-O {[%clk 0:10:02.7]} 13... Nb6 {[%clk 0:09:56.3]} 14. Kb1
{[%clk 0:10:02.6]} 14... Nc4 {[%clk 0:09:56.2]} 15. Bc1 {[%clk 0:10:00.7]} 15...
Qb6 {[%clk 0:09:47]} 16. h5 {[%clk 0:09:58.4]} 16... a5 {[%clk 0:09:46.3]} 17.
g6 {[%clk 0:09:56.6]} 17... a4 {[%clk 0:09:45.9]} 18. gxh7+ {[%clk 0:09:56.2]}
18... Kh8 {[%clk 0:09:45.5]} 19. Nd2 {[%clk 0:09:56.7]} 19... N6e5 {[%clk
0:09:28.1]} 20. h6 {[%clk 0:09:50.8]} 20... g6 {[%clk 0:09:23.8]} 21. f4 {[%clk
0:09:48.4]} 21... Nxd2+ {[%clk 0:09:23.7]} 22. Bxd2 {[%clk 0:09:47.3]} 22... Nc4
{[%clk 0:09:24.9]} 23. Bc1 {[%clk 0:09:48]} 23... Bf6 {[%clk 0:09:18.4]} 24. e5
{[%clk 0:09:47.3]} 24... dxe5 {[%clk 0:09:16.8]} 25. Bxb7 {[%clk 0:09:49.2]}
25... Qxb7 {[%clk 0:09:10.9]} 26. Ne4 {[%clk 0:09:50.5]} 26... Qe7 {[%clk
0:08:53.7]} 27. Rd3 {[%clk 0:08:55.6]} 27... exf4 {[%clk 0:08:39.3]} 28. Rhd1
{[%clk 0:08:50.8]} 28... Ra7 {[%clk 0:06:39.3]} 29. Qf2 {[%clk 0:08:45.5]} 29...
Rfa8 {[%clk 0:05:38.1]} 30. Qxf4 {[%clk 0:08:40]} 30... Be5 {[%clk 0:05:27.9]}
31. Qg5 {[%clk 0:08:26.6]} 31... Qxg5 {[%clk 0:04:40.9]} 32. Bxg5 {[%clk
0:08:28.5]} 32... Kxh7 {[%clk 0:03:24.9]} 33. Rd8 {[%clk 0:07:17.5]} 33... Nb6
{[%clk 0:02:01]} 34. Be3 {[%clk 0:07:03.3]} 34... Nd5 {[%clk 0:02:00.8]} 35.
Ng5+ {[%clk 0:06:57.3]} 35... Kxh6 {[%clk 0:01:59.4]} 36. R8xd5 {[%clk
0:06:49.4]} 36... exd5 {[%clk 0:01:55.9]} 37. Nxf7+ {[%clk 0:06:50.4]} 37... Kg7
{[%clk 0:01:54.3]} 38. Nxe5 {[%clk 0:06:51.4]} 38... Re7 {[%clk 0:01:50.8]} 39.
Bd4 {[%clk 0:06:52.6]} 39... Re6 {[%clk 0:01:41]} 40. b4 {[%clk 0:06:51.2]}
40... axb3 {[%clk 0:01:36.9]} 41. axb3 {[%clk 0:06:51.4]} 41... g5 {[%clk
0:01:21.6]} 42. Rg1 {[%clk 0:06:50.7]} 42... Kh6 {[%clk 0:01:13.6]} 43. Nf7+
{[%clk 0:06:50.7]} 43... Kg6 {[%clk 0:01:11.5]} 44. Nxg5 {[%clk 0:06:51.6]}
44... Rea6 {[%clk 0:01:12.4]} 45. Ne6+ {[%clk 0:06:52.1]} 45... Kf7 {[%clk
0:01:08]} 46. Nc7 {[%clk 0:06:52.5]} 1-0

[Event "GrandPrix_30.05"]
[Site "Chess.com"]
[Date "2020.05.30"]
[Round "3"]
[White "Happy1712Drummer"]
[Black "Misterlose0"]
[Result "0-1"]
[WhiteElo "2184"]
[BlackElo "1967"]
[TimeControl "600+2"]
[EndTime "9:16:59 PDT"]
[Termination "Misterlose0 won by resignation"]

1. d4 {[%clk 0:09:53.2]} 1... Nf6 {[%clk 0:10:00.4]} 2. c4 {[%clk 0:09:51.1]}
2... c5 {[%clk 0:10:01.5]} 3. d5 {[%clk 0:09:50]} 3... e6 {[%clk 0:10:03.4]} 4.
Nc3 {[%clk 0:09:48.7]} 4... exd5 {[%clk 0:10:05]} 5. cxd5 {[%clk 0:09:50.1]}
5... d6 {[%clk 0:10:06.7]} 6. Nf3 {[%clk 0:09:49.4]} 6... g6 {[%clk 0:10:08.6]}
7. Qa4+ {[%clk 0:09:34.1]} 7... Nbd7 {[%clk 0:10:06.3]} 8. Bf4 {[%clk
0:09:24.3]} 8... Be7 {[%clk 0:09:55.9]} 9. e4 {[%clk 0:09:20.1]} 9... a6 {[%clk
0:09:33.3]} 10. Be2 {[%clk 0:08:03.7]} 10... O-O {[%clk 0:09:32.4]} 11. Bh6
{[%clk 0:07:58.1]} 11... Rb8 {[%clk 0:09:34.3]} 12. Bxf8 {[%clk 0:07:56.3]}
12... Qxf8 {[%clk 0:09:33.4]} 13. Qc2 {[%clk 0:07:47.5]} 13... b5 {[%clk
0:09:32.2]} 14. O-O {[%clk 0:07:41.7]} 14... Nh5 {[%clk 0:08:51]} 15. Rfe1
{[%clk 0:07:36.3]} 15... Bf6 {[%clk 0:08:48]} 16. a4 {[%clk 0:07:28.8]} 16... b4
{[%clk 0:08:17.9]} 17. Nd1 {[%clk 0:07:28.7]} 17... Nf4 {[%clk 0:08:16.3]} 18.
Bf1 {[%clk 0:07:28.4]} 18... Ne5 {[%clk 0:08:13.2]} 19. Nxe5 {[%clk 0:07:27.7]}
19... Bxe5 {[%clk 0:08:15.1]} 20. Ne3 {[%clk 0:07:20.6]} 20... Qh6 {[%clk
0:08:03.5]} 21. g3 {[%clk 0:07:19.2]} 21... Nh3+ {[%clk 0:07:55.2]} 22. Kh1
{[%clk 0:07:02.2]} 22... b3 {[%clk 0:07:40.9]} 23. Qe2 {[%clk 0:06:54.2]} 23...
Rb4 {[%clk 0:07:32.9]} 24. Bg2 {[%clk 0:06:12.2]} 24... a5 {[%clk 0:05:56.1]}
25. Rf1 {[%clk 0:05:48]} 25... Nf4 {[%clk 0:05:25.8]} 26. Qf3 {[%clk 0:03:31.1]}
26... Nd3 {[%clk 0:04:56.7]} 27. Ng4 {[%clk 0:03:24.8]} 27... Bxg4 {[%clk
0:04:52.2]} 28. Qxd3 {[%clk 0:03:19.1]} 28... c4 {[%clk 0:04:28.6]} 29. Qe3
{[%clk 0:03:08.8]} 29... Qxe3 {[%clk 0:04:29.7]} 30. fxe3 {[%clk 0:03:10.2]}
30... Bxb2 {[%clk 0:04:31]} 31. Rab1 {[%clk 0:03:05.3]} 31... Be5 {[%clk
0:04:18.5]} 32. h3 {[%clk 0:02:57]} 32... Bd7 {[%clk 0:04:13.4]} 0-1

[Event "GrandPrix_30.05"]
[Site "Chess.com"]
[Date "2020.05.30"]
[Round "3"]
[White "Jaka_Brilej"]
[Black "Flawless_Fighter"]
[Result "0-1"]
[WhiteElo "2111"]
[BlackElo "2242"]
[TimeControl "600+2"]
[EndTime "9:17:09 PDT"]
[Termination "Flawless_Fighter won by resignation"]

1. e4 {[%clk 0:10:01.7]} 1... c6 {[%clk 0:09:55.4]} 2. Nf3 {[%clk 0:10:02]} 2...
d5 {[%clk 0:09:57.3]} 3. Nc3 {[%clk 0:10:02.6]} 3... Bg4 {[%clk 0:09:57.4]} 4.
h3 {[%clk 0:10:02.7]} 4... Bxf3 {[%clk 0:09:58.2]} 5. Qxf3 {[%clk 0:10:04]} 5...
e6 {[%clk 0:09:56]} 6. d4 {[%clk 0:10:04.7]} 6... dxe4 {[%clk 0:09:51.9]} 7.
Qxe4 {[%clk 0:10:04.8]} 7... Nf6 {[%clk 0:09:51.9]} 8. Qd3 {[%clk 0:10:05.9]}
8... Be7 {[%clk 0:09:47.8]} 9. g3 {[%clk 0:09:52]} 9... O-O {[%clk 0:09:47.8]}
10. Bg2 {[%clk 0:09:52.9]} 10... Nbd7 {[%clk 0:09:45.6]} 11. O-O {[%clk
0:09:53.3]} 11... Nd5 {[%clk 0:09:32.4]} 12. Ne4 {[%clk 0:09:46.4]} 12... Rc8
{[%clk 0:09:00.4]} 13. c4 {[%clk 0:09:35]} 13... N5f6 {[%clk 0:08:39.4]} 14. Nc3
{[%clk 0:09:16.2]} 14... Qc7 {[%clk 0:07:07.3]} 15. Bf4 {[%clk 0:09:08.2]} 15...
Bd6 {[%clk 0:07:06.9]} 16. Bxd6 {[%clk 0:09:09.3]} 16... Qxd6 {[%clk 0:07:08]}
17. Rad1 {[%clk 0:09:09.4]} 17... Rfd8 {[%clk 0:07:06.5]} 18. f4 {[%clk
0:09:04.6]} 18... g6 {[%clk 0:07:03.9]} 19. b3 {[%clk 0:08:58.5]} 19... a6
{[%clk 0:06:36.1]} 20. Kh2 {[%clk 0:08:28.8]} 20... b5 {[%clk 0:06:35.7]} 21. c5
{[%clk 0:08:24.1]} 21... Nxc5 {[%clk 0:06:30.8]} 22. Qe3 {[%clk 0:08:17.2]}
22... Ncd7 {[%clk 0:06:30.7]} 23. Rd2 {[%clk 0:08:04.6]} 23... Nd5 {[%clk
0:06:25.6]} 24. Qd3 {[%clk 0:07:51.8]} 24... Nxc3 {[%clk 0:06:19.7]} 25. Qxc3
{[%clk 0:07:52.9]} 25... Nf6 {[%clk 0:06:21.3]} 26. Rfd1 {[%clk 0:07:22.3]}
26... h5 {[%clk 0:06:21]} 27. Qc5 {[%clk 0:07:11.9]} 27... h4 {[%clk 0:06:00.8]}
28. Qe5 {[%clk 0:06:57.9]} 28... hxg3+ {[%clk 0:05:52.7]} 29. Kxg3 {[%clk
0:06:58.6]} 29... Nh5+ {[%clk 0:05:51.1]} 30. Kg4 {[%clk 0:06:58.3]} 30... Qe7
{[%clk 0:05:22.1]} 31. Qg5 {[%clk 0:06:46.9]} 31... f5+ {[%clk 0:04:47]} 32. Kf3
{[%clk 0:06:43.9]} 32... Qg7 {[%clk 0:04:41.5]} 33. Kf2 {[%clk 0:06:34]} 33...
Rd6 {[%clk 0:04:34.4]} 34. Bf3 {[%clk 0:06:20.8]} 34... Nf6 {[%clk 0:04:34.8]}
35. h4 {[%clk 0:06:09.9]} 35... Kf7 {[%clk 0:04:12]} 36. Rg1 {[%clk 0:05:46.4]}
36... Rh8 {[%clk 0:04:08.1]} 37. Rc2 {[%clk 0:05:38.3]} 37... Ng4+ {[%clk
0:03:50.6]} 38. Bxg4 {[%clk 0:05:11.3]} 38... Qxd4+ {[%clk 0:03:50.2]} 39. Kg2
{[%clk 0:04:52.8]} 39... Qe4+ {[%clk 0:03:16.9]} 40. Bf3 {[%clk 0:04:53.5]}
40... Qxc2+ {[%clk 0:03:16.9]} 41. Kh1 {[%clk 0:04:54.6]} 41... Qc3 {[%clk
0:02:56.9]} 42. Rg3 {[%clk 0:04:28.2]} 42... Qf6 {[%clk 0:02:51.6]} 0-1

[Event "GrandPrix_30.05"]
[Site "Chess.com"]
[Date "2020.05.30"]
[Round "3"]
[White "DinaBelenkaya"]
[Black "Grandelicious"]
[Result "0-1"]
[WhiteElo "1625"]
[BlackElo "2578"]
[TimeControl "600+2"]
[EndTime "9:17:10 PDT"]
[Termination "Grandelicious won by resignation"]

1. e4 {[%clk 0:10:01.9]} 1... c5 {[%clk 0:10:00.9]} 2. Nc3 {[%clk 0:09:44.7]}
2... e6 {[%clk 0:10:01.3]} 3. g3 {[%clk 0:09:40.4]} 3... d5 {[%clk 0:09:58.3]}
4. exd5 {[%clk 0:09:40.5]} 4... exd5 {[%clk 0:10:00.2]} 5. d4 {[%clk 0:09:20.4]}
5... cxd4 {[%clk 0:09:55.2]} 6. Nb5 {[%clk 0:08:52.3]} 6... Nf6 {[%clk
0:08:41.7]} 7. Nxd4 {[%clk 0:08:46.9]} 7... Bc5 {[%clk 0:08:33.4]} 8. Nge2
{[%clk 0:07:51.2]} 8... O-O {[%clk 0:08:08]} 9. Bg2 {[%clk 0:06:36.1]} 9... Bg4
{[%clk 0:08:07.2]} 10. f3 {[%clk 0:06:14.6]} 10... Bd7 {[%clk 0:08:06.7]} 11.
O-O {[%clk 0:03:51.4]} 11... Re8 {[%clk 0:08:07.1]} 12. Kh1 {[%clk 0:03:25.1]}
12... Nc6 {[%clk 0:08:07.3]} 13. c3 {[%clk 0:03:12.3]} 13... h6 {[%clk
0:08:05.3]} 14. b4 {[%clk 0:02:27.5]} 14... Bb6 {[%clk 0:08:02.4]} 15. a4 {[%clk
0:01:58]} 15... a5 {[%clk 0:07:59.6]} 16. b5 {[%clk 0:01:55.5]} 16... Ne5 {[%clk
0:07:59.3]} 17. Nf4 {[%clk 0:01:26.2]} 17... Rc8 {[%clk 0:07:35.7]} 18. Nb3
{[%clk 0:00:55.8]} 18... Rxc3 {[%clk 0:07:14.7]} 19. Bb2 {[%clk 0:00:37.3]}
19... Re3 {[%clk 0:06:00.3]} 20. Nxd5 {[%clk 0:00:36.7]} 20... Nxd5 {[%clk
0:06:02.2]} 21. Qxd5 {[%clk 0:00:37.8]} 21... Be6 {[%clk 0:05:57.7]} 22. Qxd8
{[%clk 0:00:34.1]} 22... Rxd8 {[%clk 0:05:59.6]} 23. Nc1 {[%clk 0:00:16]} 23...
Nc4 {[%clk 0:06:00.9]} 24. Ra2 {[%clk 0:00:08.2]} 24... Nd2 {[%clk 0:05:59.8]}
25. Re1 {[%clk 0:00:02.9]} 25... Rxe1+ {[%clk 0:06:00.5]} 0-1

[Event "GrandPrix_30.05"]
[Site "Chess.com"]
[Date "2020.05.30"]
[Round "3"]
[White "GMMarcinDziuba"]
[Black "DariaVoit"]
[Result "1-0"]
[WhiteElo "2557"]
[BlackElo "2319"]
[TimeControl "600+2"]
[EndTime "9:17:15 PDT"]
[Termination "GMMarcinDziuba won by resignation"]

1. Nf3 {[%clk 0:10:00.2]} 1... Nf6 {[%clk 0:09:19.5]} 2. g3 {[%clk 0:10:00.5]}
2... g6 {[%clk 0:09:19.1]} 3. Bg2 {[%clk 0:10:01.5]} 3... Bg7 {[%clk 0:09:19.8]}
4. c4 {[%clk 0:10:02.5]} 4... c6 {[%clk 0:09:20.3]} 5. d4 {[%clk 0:10:00.5]}
5... d5 {[%clk 0:09:20.3]} 6. Qb3 {[%clk 0:09:58.7]} 6... O-O {[%clk 0:09:15.9]}
7. O-O {[%clk 0:09:59.7]} 7... Qb6 {[%clk 0:09:11.8]} 8. Nc3 {[%clk 0:09:58.1]}
8... dxc4 {[%clk 0:09:06.9]} 9. Qxc4 {[%clk 0:09:56.2]} 9... Bf5 {[%clk
0:09:07.7]} 10. Na4 {[%clk 0:09:29.4]} 10... Qa6 {[%clk 0:09:02.9]} 11. Qxa6
{[%clk 0:09:25.3]} 11... Nxa6 {[%clk 0:09:02.8]} 12. Bf4 {[%clk 0:09:19.8]}
12... Nd5 {[%clk 0:08:48.5]} 13. Be5 {[%clk 0:09:10.9]} 13... Be4 {[%clk
0:08:45.4]} 14. Bxg7 {[%clk 0:09:07.2]} 14... Kxg7 {[%clk 0:08:46.5]} 15. Ne5
{[%clk 0:09:04]} 15... Bxg2 {[%clk 0:08:45.6]} 16. Kxg2 {[%clk 0:09:05.9]} 16...
Rfd8 {[%clk 0:08:44.6]} 17. e3 {[%clk 0:09:03.9]} 17... Nb6 {[%clk 0:08:32.6]}
18. Nc3 {[%clk 0:08:26.8]} 18... c5 {[%clk 0:08:28.4]} 19. Nf3 {[%clk
0:08:13.4]} 19... cxd4 {[%clk 0:08:19.4]} 20. Nxd4 {[%clk 0:08:15.3]} 20... e5
{[%clk 0:08:14.5]} 21. Ndb5 {[%clk 0:08:15.4]} 21... Rd2 {[%clk 0:08:13.2]} 22.
b3 {[%clk 0:08:07.5]} 22... Nb4 {[%clk 0:06:58.6]} 23. Rfd1 {[%clk 0:08:05.6]}
23... Rad8 {[%clk 0:06:33.8]} 24. Rxd2 {[%clk 0:07:11.9]} 24... Rxd2 {[%clk
0:06:32.8]} 25. Nxa7 {[%clk 0:07:11.8]} 25... Nc2 {[%clk 0:05:40.3]} 26. Ne4
{[%clk 0:06:57.1]} 26... Rxf2+ {[%clk 0:04:44.7]} 27. Kxf2 {[%clk 0:06:56.8]}
27... Nxa1 {[%clk 0:04:46.6]} 28. Nd6 {[%clk 0:06:50.8]} 28... Nc2 {[%clk
0:04:43.8]} 29. Nxb7 {[%clk 0:06:49.7]} 29... Nd5 {[%clk 0:04:32.3]} 30. e4
{[%clk 0:06:45.8]} 30... Nc3 {[%clk 0:04:30.7]} 31. a4 {[%clk 0:05:24]} 31...
Nxe4+ {[%clk 0:04:30.4]} 32. Ke2 {[%clk 0:05:25.2]} 32... f5 {[%clk 0:04:17.1]}
33. Nc6 {[%clk 0:05:17.7]} 33... Kf6 {[%clk 0:04:00.1]} 34. a5 {[%clk 0:05:13]}
34... Nd4+ {[%clk 0:03:46.5]} 35. Nxd4 {[%clk 0:05:11.8]} 35... exd4 {[%clk
0:03:48.4]} 36. a6 {[%clk 0:04:28.4]} 36... Nc3+ {[%clk 0:03:39.4]} 37. Kd3
{[%clk 0:04:28.8]} 37... Nb5 {[%clk 0:03:41.3]} 38. Nd6 {[%clk 0:04:02.4]} 38...
Na7 {[%clk 0:03:24.8]} 39. Kxd4 {[%clk 0:04:01.1]} 39... Ke6 {[%clk 0:03:25.7]}
40. Kc5 {[%clk 0:04:02]} 40... g5 {[%clk 0:03:24.1]} 41. Nb5 {[%clk 0:04:01.9]}
41... Nc8 {[%clk 0:03:21.1]} 42. a7 {[%clk 0:04:02.7]} 42... Nxa7 {[%clk
0:03:22.3]} 43. Nxa7 {[%clk 0:04:04.6]} 43... f4 {[%clk 0:03:18.4]} 44. gxf4
{[%clk 0:04:05.3]} 44... gxf4 {[%clk 0:03:18.5]} 45. Nc6 {[%clk 0:04:06.4]} 1-0

[Event "GrandPrix_30.05"]
[Site "Chess.com"]
[Date "2020.05.30"]
[Round "3"]
[White "WhiteCapital80"]
[Black "Igor_Lysyj"]
[Result "1/2-1/2"]
[WhiteElo "2332"]
[BlackElo "2582"]
[TimeControl "600+2"]
[EndTime "9:17:28 PDT"]
[Termination "Game drawn by agreement"]

1. e4 {[%clk 0:08:52.2]} 1... e5 {[%clk 0:09:58.5]} 2. Nf3 {[%clk 0:08:52.7]}
2... Nc6 {[%clk 0:09:58.9]} 3. Bb5 {[%clk 0:08:52.9]} 3... Nf6 {[%clk
0:09:58.7]} 4. O-O {[%clk 0:08:52.8]} 4... Nxe4 {[%clk 0:09:59.4]} 5. d4 {[%clk
0:08:53.5]} 5... Nd6 {[%clk 0:09:58.9]} 6. Bxc6 {[%clk 0:08:54.3]} 6... dxc6
{[%clk 0:09:59.6]} 7. dxe5 {[%clk 0:08:55.4]} 7... Nf5 {[%clk 0:10:00.1]} 8.
Qxd8+ {[%clk 0:08:56.2]} 8... Kxd8 {[%clk 0:10:01.1]} 9. Rd1+ {[%clk 0:08:57.1]}
9... Ke8 {[%clk 0:10:01.5]} 10. Nc3 {[%clk 0:08:58]} 10... Be7 {[%clk
0:10:00.4]} 11. b3 {[%clk 0:08:17.5]} 11... b6 {[%clk 0:09:45.1]} 12. Bb2 {[%clk
0:07:56.6]} 12... Bb7 {[%clk 0:09:39.8]} 13. Ne2 {[%clk 0:07:27.9]} 13... c5
{[%clk 0:08:55.2]} 14. Nc3 {[%clk 0:07:25.7]} 14... Bxf3 {[%clk 0:07:42.7]} 15.
gxf3 {[%clk 0:07:26]} 15... c6 {[%clk 0:07:44]} 16. Ne4 {[%clk 0:07:02.2]} 16...
Rd8 {[%clk 0:07:39.1]} 17. Rxd8+ {[%clk 0:06:35.3]} 17... Kxd8 {[%clk
0:07:38.9]} 18. Rd1+ {[%clk 0:06:34.7]} 18... Kc8 {[%clk 0:07:30.9]} 19. Ng3
{[%clk 0:06:10.1]} 19... Nh4 {[%clk 0:07:26.8]} 20. f4 {[%clk 0:06:10.7]} 20...
Rd8 {[%clk 0:06:54.5]} 21. Rxd8+ {[%clk 0:06:07.8]} 21... Kxd8 {[%clk
0:06:54.7]} 22. Bc3 {[%clk 0:05:26.6]} 22... g6 {[%clk 0:06:39.2]} 23. Kf1
{[%clk 0:05:20.8]} 23... Kd7 {[%clk 0:06:33.8]} 24. Ke2 {[%clk 0:05:15.3]} 24...
Ke6 {[%clk 0:05:50.6]} 25. Bb2 {[%clk 0:04:38.4]} 25... Ng2 {[%clk 0:05:11.8]}
26. Bc1 {[%clk 0:04:22.1]} 26... f6 {[%clk 0:04:58.7]} 27. exf6 {[%clk
0:04:14.2]} 27... Bxf6 {[%clk 0:04:59.4]} 28. c4 {[%clk 0:04:12.5]} 28... Nh4
{[%clk 0:04:51.5]} 29. Be3 {[%clk 0:03:57.9]} 29... Nf5 {[%clk 0:04:37.5]} 30.
Nxf5 {[%clk 0:03:19.3]} 30... Kxf5 {[%clk 0:04:31.3]} 31. Kf3 {[%clk 0:03:20.2]}
31... Bc3 {[%clk 0:04:26.5]} 32. a4 {[%clk 0:03:16.9]} 32... Bd4 {[%clk
0:03:57]} 33. Bd2 {[%clk 0:03:11.1]} 33... a6 {[%clk 0:03:50.3]} 34. Be3 {[%clk
0:03:09.1]} 34... b5 {[%clk 0:03:20.3]} 35. h3 {[%clk 0:03:07.5]} 1/2-1/2

[Event "GrandPrix_30.05"]
[Site "Chess.com"]
[Date "2020.05.30"]
[Round "3"]
[White "NikolaGry"]
[Black "Pidzsy"]
[Result "1-0"]
[WhiteElo "2137"]
[BlackElo "2213"]
[TimeControl "600+2"]
[EndTime "9:17:44 PDT"]
[Termination "NikolaGry won by resignation"]

1. e4 {[%clk 0:10:01.9]} 1... c5 {[%clk 0:09:28.4]} 2. Nf3 {[%clk 0:09:58.4]}
2... a6 {[%clk 0:09:29.4]} 3. c4 {[%clk 0:09:42.9]} 3... e6 {[%clk 0:09:27.1]}
4. Nc3 {[%clk 0:09:40.8]} 4... Nc6 {[%clk 0:09:27.3]} 5. d4 {[%clk 0:09:34.5]}
5... cxd4 {[%clk 0:09:27.2]} 6. Nxd4 {[%clk 0:09:35.1]} 6... Bb4 {[%clk
0:09:27.3]} 7. Nxc6 {[%clk 0:09:06.2]} 7... dxc6 {[%clk 0:09:23]} 8. Qxd8+
{[%clk 0:08:48.1]} 8... Kxd8 {[%clk 0:09:24.9]} 9. Bd2 {[%clk 0:08:45.7]} 9...
e5 {[%clk 0:09:03.1]} 10. O-O-O {[%clk 0:08:31.7]} 10... Bd7 {[%clk 0:08:55.8]}
11. Na4 {[%clk 0:07:56.3]} 11... Bxd2+ {[%clk 0:08:49.5]} 12. Rxd2 {[%clk
0:07:55]} 12... Nf6 {[%clk 0:08:25.4]} 13. Nb6 {[%clk 0:07:40.1]} 13... Rb8
{[%clk 0:08:22.1]} 14. c5 {[%clk 0:07:21.1]} 14... Kc7 {[%clk 0:08:20]} 15. Bc4
{[%clk 0:07:05.4]} 15... Rhf8 {[%clk 0:08:08.8]} 16. Rhd1 {[%clk 0:06:44]} 16...
Rbd8 {[%clk 0:08:06.4]} 17. f3 {[%clk 0:05:36.9]} 17... a5 {[%clk 0:08:02.2]}
18. Kc2 {[%clk 0:05:09.8]} 18... Be6 {[%clk 0:07:24.3]} 19. Rxd8 {[%clk
0:04:48.9]} 19... Rxd8 {[%clk 0:07:23.8]} 20. Rxd8 {[%clk 0:04:47.9]} 20... Kxd8
{[%clk 0:07:24.2]} 21. Bxe6 {[%clk 0:04:29.1]} 21... fxe6 {[%clk 0:07:26.1]} 22.
Kb3 {[%clk 0:04:07.7]} 22... g5 {[%clk 0:07:19.7]} 23. Ka4 {[%clk 0:03:53.6]}
23... g4 {[%clk 0:07:17.1]} 24. Kxa5 {[%clk 0:03:47.8]} 24... h5 {[%clk
0:07:18]} 25. Nc4 {[%clk 0:03:22.8]} 25... Nd7 {[%clk 0:07:17.4]} 26. Kb4 {[%clk
0:02:42.3]} 26... Kc7 {[%clk 0:07:13.3]} 27. a4 {[%clk 0:02:37.8]} 27... Kb8
{[%clk 0:07:11.8]} 28. b3 {[%clk 0:02:30.4]} 28... Kc7 {[%clk 0:07:13.2]} 29.
Kc3 {[%clk 0:02:24.3]} 29... Nxc5 {[%clk 0:07:10.7]} 30. Nxe5 {[%clk 0:02:24.9]}
30... Kd6 {[%clk 0:07:12.3]} 31. Nd3 {[%clk 0:02:20.7]} 31... Nd7 {[%clk
0:07:09.8]} 32. f4 {[%clk 0:02:17.8]} 32... b6 {[%clk 0:06:50.1]} 33. b4 {[%clk
0:02:10.7]} 33... Kc7 {[%clk 0:06:44.6]} 34. a5 {[%clk 0:01:56.1]} 34... bxa5
{[%clk 0:06:39.9]} 35. bxa5 {[%clk 0:01:56.3]} 35... c5 {[%clk 0:06:39.3]} 36.
Kc4 {[%clk 0:01:43]} 36... h4 {[%clk 0:06:27.6]} 37. Nxc5 {[%clk 0:01:38.6]}
37... Nf6 {[%clk 0:06:28.6]} 38. Kd4 {[%clk 0:01:29]} 38... h3 {[%clk
0:06:27.8]} 39. gxh3 {[%clk 0:01:22.4]} 39... gxh3 {[%clk 0:06:28.4]} 40. Nxe6+
{[%clk 0:01:22.3]} 40... Kc6 {[%clk 0:06:29.2]} 41. Ng5 {[%clk 0:01:22.1]} 41...
Ng4 {[%clk 0:06:29.7]} 42. Nxh3 {[%clk 0:01:20.2]} 42... Nxh2 {[%clk 0:06:30.9]}
43. Ke5 {[%clk 0:01:13]} 43... Nf3+ {[%clk 0:06:29.4]} 44. Kf6 {[%clk
0:01:12.3]} 44... Kb5 {[%clk 0:06:30.2]} 45. Ng5 {[%clk 0:01:11.1]} 45... Nd4
{[%clk 0:06:29.1]} 46. e5 {[%clk 0:01:10.9]} 46... Kxa5 {[%clk 0:06:30.3]} 47.
e6 {[%clk 0:01:11.8]} 47... Nb5 {[%clk 0:06:27.8]} 48. e7 {[%clk 0:01:01.8]}
48... Nd6 {[%clk 0:06:28.4]} 49. Ke6 {[%clk 0:01:01]} 49... Ne8 {[%clk 0:06:29]}
50. Kd7 {[%clk 0:00:57.1]} 50... Nf6+ {[%clk 0:06:29.1]} 51. Kd8 {[%clk
0:00:57.5]} 51... Kb6 {[%clk 0:06:30]} 52. e8=Q {[%clk 0:00:57.3]} 52... Nxe8
{[%clk 0:06:30.9]} 53. Kxe8 {[%clk 0:00:58.2]} 1-0